fUSD/lending_fUSD_20250113
["ID","MTS","AMOUNT","RATE_DAILY","PERIOD"]
[348759213,1736773877956,-519.85,0.00011094,2]
[348759214,1736773877966,-2164.57,0.00011094,2]
[348759215,1736773877976,-500.0,0.00011094,2]
[348759216,1736773877986,-549.45,0.00011094,2]
[348759217,1736773877995,-1372.06,0.00011094,2]
[348759218,1736773878005,-818.41,0.00011094,2]
[348759219,1736773878015,-500.0,0.00011095,2]
[348759220,1736773878025,-500.0,0.00011095,2]
[348759221,1736773878035,-500.0,0.00011095,2]
[348759222,1736773878045,-500.0,0.00011095,2]
[348759223,1736773878055,-500.0,0.00011095,2]
[348759224,1736773878065,-500.0,0.00011095,2]
[348759225,1736773878075,-1000.0,0.00011095,2]
[348759226,1736773878084,-735.27,0.00011095,2]
[348759227,1736773878094,-500.0,0.00011095,2]
[348759228,1736773878104,-1122.61,0.00011095,2]
[348759229,1736773878114,-45991.95782869,0.00011099,2]
[348759230,1736773878124,-45991.95782864,0.00011099,2]
[348759231,1736773878134,-45991.95782864,0.00011099,2]
[348759232,1736773878143,-45991.95782864,0.00011099,2]
[348759233,1736773878153,-45991.95782864,0.00011099,2]
[348759234,1736773878163,-45991.95782864,0.00011099,2]
[348759235,1736773878173,-45991.95782864,0.00011099,2]
[348759236,1736773878184,-45991.95782864,0.00011099,2]
[348759237,1736773878193,-45991.95782864,0.00011099,2]
[348759238,1736773878203,-45991.95782864,0.00011099,2]
[348759239,1736773878213,-3000.0,0.000111,2]
[348759240,1736773878223,-500.0,0.0001111,2]
[348759241,1736773878232,-1200.0,0.00011124,2]
[348759242,1736773878242,-500.0,0.00011124,2]
[348759243,1736773878252,-500.0,0.00011124,2]
[348759244,1736773878261,-500.0,0.00011124,2]
[348759245,1736773878271,-518.0,0.00011124,2]
[348759246,1736773878281,-620.73,0.00011137,2]
[348759247,1736773878291,-500.0,0.00011138,2]
[348759248,1736773878301,-2068.98334803,0.00011152,2]
[348759249,1736773878311,-500.0,0.00011165,2]
[348759250,1736773878321,-500.0,0.00011193,2]
[348759251,1736773878330,-500.0,0.0001122,2]
[348759252,1736773878340,-500.0,0.00011232,2]
[348759253,1736773878350,-500.0,0.00011247,2]
[348759254,1736773878360,-270.0,0.0001127,2]
[348759255,1736773878369,-339.0,0.0001127,2]
[348759256,1736773878382,-500.0,0.00011275,2]
[348759257,1736773878392,-2068.98334803,0.00011286,2]
[348759258,1736773878403,-500.0,0.000113,2]
[348759259,1736773878413,-500.0,0.000113,2]
[348759260,1736773878423,-500.0,0.000113,2]
[348759261,1736773878433,-500.0,0.000113,2]
[348759262,1736773878443,-500.0,0.000113,2]
[348759263,1736773878454,-500.0,0.000113,2]
[348759264,1736773878464,-500.0,0.000113,2]
[348759265,1736773878474,-500.0,0.000113,2]
[348759266,1736773878484,-587.8,0.000113,2]
[348759267,1736773878493,-500.0,0.000113,2]
[348759268,1736773878503,-500.0,0.000113,2]
[348759269,1736773878513,-535.73842974,0.00011302,2]
[348759270,1736773878523,-1000.0,0.0001134,2]
[348759271,1736773878532,-1495.77,0.00011365,2]
[348759272,1736773878542,-4901.24,0.00011365,2]
[348759273,1736773878551,-500.0,0.00011365,2]
[348759274,1736773878560,-516.84,0.00011365,2]
[348759275,1736773878570,-500.0,0.00011365,2]
[348759276,1736773878581,-1154.59,0.00011365,2]
[348759277,1736773878591,-721.36,0.00011365,2]
[348759278,1736773878601,-1250.94,0.00011365,2]
[348759279,1736773878611,-2172.52,0.00011365,2]
[348759280,1736773878621,-500.0,0.00011365,2]
[348759281,1736773878632,-3812.19,0.00011365,2]
[348759282,1736773878647,-1080.68,0.00011365,2]
[348759283,1736773878656,-671.5218156,0.00011365,2]
[348759284,1736773879231,-635.615694,0.00011365,2]
[348759285,1736773879243,-455.46,0.00011365,2]
[348759286,1736773879255,-384.2424904,0.00011365,2]
[348759287,1736773879265,-2120.16,0.00011365,2]
[348759288,1736773879274,-192.80935554,0.00011365,2]
[348759289,1736773879286,-364.47064446,0.00011365,2]
[348759290,1736773879296,-711.52935554,0.00011365,2]
[348759291,1736773879316,-1107.34064446,0.00011365,2]
[348759292,1736773879326,-1556.94,0.00011365,2]
[348759293,1736773879337,-206.03085554,0.00011365,2]
[348759294,1736773879350,-644.87411779,0.00011365,2]
[348759295,1736773879362,-390.92502667,0.00011365,2]
[348759296,1736773879373,-1142.83637336,0.00011365,2]
[348759297,1736773879422,-500.0,0.0001,2]
[348759298,1736773879432,-633.86,0.00010543,2]
[348759299,1736773879442,-279.97362664,0.00011365,2]
[348759300,1736773879452,-1316.25,0.00011365,2]
[348759301,1736773879462,-925.83,0.00011365,2]
[348759302,1736773879473,-2186.15,0.00011365,2]
[348759303,1736773879483,-997.96,0.00011365,2]
[348759304,1736773879493,-13.01482233,0.00011365,2]
[348759305,1736773879506,-824.46517767,0.00011365,2]
[348759306,1736773879516,-626.28,0.00011365,2]
[348759307,1736773879525,-500.0,0.00011365,2]
[348759308,1736773879536,-1772.62,0.00011365,2]
[348759309,1736773879545,-1607.66,0.00011365,2]
[348759310,1736773879555,-2877.55,0.00011365,2]
[348759311,1736773879565,-500.0,0.00011365,2]
[348759312,1736773879576,-1598.47,0.00011365,2]
[348759313,1736773879587,-500.0,0.00011365,2]
[348759314,1736773879596,-500.0,0.00011365,2]
[348759315,1736773879606,-840.88,0.00011365,2]
[348759316,1736773879616,-4142.48,0.00011365,2]
[348759317,1736773879626,-515.21,0.00011365,2]
[348759318,1736773879637,-643.25,0.00011365,2]
[348759319,1736773879647,-500.0,0.00011366,2]
[348759320,1736773879656,-500.0,0.00011366,2]
[348759321,1736773879667,-562.07,0.00011366,2]
[348759322,1736773879676,-565.59,0.00011366,2]
[348759323,1736773879686,-500.0,0.00011366,2]
[348759324,1736773879696,-500.0,0.00011366,2]
[348759325,1736773879706,-500.0,0.00011366,2]
[348759326,1736773879715,-500.0,0.00011366,2]
[348759327,1736773879724,-500.0,0.00011366,2]
[348759328,1736773879734,-500.0,0.00011366,2]
[348759329,1736773879743,-500.0,0.00011366,2]
[348759330,1736773879753,-500.0,0.00011366,2]
[348759331,1736773879762,-500.0,0.00011366,2]
[348759332,1736773879772,-500.0,0.00011366,2]
[348759333,1736773879782,-500.0,0.00011366,2]
[348759334,1736773879791,-500.0,0.00011366,2]
[348759335,1736773879800,-500.0,0.00011366,2]
[348759336,1736773879809,-500.0,0.00011366,2]
[348759337,1736773879819,-500.0,0.00011366,2]
[348759338,1736773879828,-508.72,0.00011366,2]
[348759339,1736773879837,-500.0,0.00011366,2]
[348759340,1736773879847,-500.0,0.00011366,2]
[348759341,1736773879856,-488.57,0.00011366,2]
[348759342,1736773879865,-500.0,0.00011366,2]
[348759343,1736773879874,-500.0,0.00011366,2]
[348759344,1736773879884,-500.0,0.00011366,2]
[348759345,1736773879893,-500.0,0.00011366,2]
[348759346,1736773879904,-493.50548145,0.00011366,2]
[348759347,1736773879914,-500.0,0.00011366,2]
[348759348,1736773879924,-500.0,0.00011366,2]
[348759349,1736773879934,-500.0,0.00011366,2]
[348759350,1736773879943,-500.0,0.00011366,2]
[348759351,1736773879953,-500.0,0.00011366,2]
[348759352,1736773879962,-500.0,0.00011366,2]
[348759353,1736773879972,-500.0,0.00011366,2]
[348759354,1736773879981,-500.0,0.00011366,2]
[348759355,1736773879991,-500.0,0.00011366,2]
[348759356,1736773880000,-500.0,0.00011366,2]
[348759357,1736773880010,-500.0,0.00011366,2]
[348759358,1736773880019,-500.0,0.00011366,2]
[348759359,1736773880028,-794.81,0.00011366,2]
[348759360,1736773880038,-637.76,0.00011366,2]
[348759361,1736773880048,-500.0,0.00011366,2]
[348759362,1736773880058,-500.0,0.00011366,2]
[348759363,1736773880068,-500.0,0.00011366,2]
[348759364,1736773880078,-894.21,0.00011366,2]
[348759365,1736773880088,-500.0,0.00011366,2]
[348759366,1736773880097,-411.28,0.00011366,2]
[348759367,1736773880107,-624.72,0.00011366,2]
[348759368,1736773880116,-500.0,0.00011366,2]
[348759369,1736773880126,-500.0,0.00011366,2]
[348759370,1736773880135,-500.0,0.00011366,2]
[348759371,1736773880145,-573.56,0.00011366,2]
[348759372,1736773880154,-874.55,0.00011366,2]
[348759373,1736773880164,-500.0,0.00011366,2]
[348759374,1736773880173,-349.48,0.00011366,2]
[348759375,1736773880183,-500.0,0.00011366,2]
[348759376,1736773880193,-500.0,0.00011366,2]
[348759377,1736773880202,-500.0,0.00011366,2]
[348759378,1736773880212,-500.0,0.00011366,2]
[348759379,1736773880222,-500.0,0.00011366,2]
[348759380,1736773880232,-500.0,0.00011366,2]
[348759381,1736773880241,-479.77598673,0.00011366,2]
[348759382,1736773880251,-500.0,0.00011366,2]
[348759383,1736773880261,-500.0,0.00011366,2]
[348759384,1736773880270,-500.0,0.00011366,2]
[348759385,1736773880280,-500.0,0.00011366,2]
[348759386,1736773880290,-500.0,0.00011366,2]
[348759387,1736773880299,-500.0,0.00011366,2]
[348759388,1736773880309,-864.18,0.00011366,2]
[348759389,1736773880318,-500.0,0.00011366,2]
[348759390,1736773880328,-500.0,0.00011366,2]
[348759391,1736773880338,-284.1364083,0.00011366,2]
[348759392,1736773880348,-500.0,0.00011366,2]
[348759393,1736773880357,-489.58636029,0.00011366,2]
[348759394,1736773880366,-500.0,0.00011366,2]
[348759395,1736773880381,-500.0,0.00011366,2]
[348759396,1736773880391,-613.92,0.00011366,2]
[348759397,1736773880402,-500.0,0.00011366,2]
[348759398,1736773880411,-665.78,0.00011366,2]
[348759399,1736773880422,-500.0,0.00011366,2]
[348759400,1736773880432,-634.07,0.00011366,2]
[348759401,1736773880441,-670.59,0.00011366,2]
[348759402,1736773880451,-500.0,0.00011366,2]
[348759403,1736773880460,-500.0,0.00011366,2]
[348759404,1736773880470,-500.0,0.00011366,2]
[348759405,1736773880480,-628.8,0.00011366,2]
[348759406,1736773880490,-959.46,0.00011366,2]
[348759407,1736773880499,-796.53,0.00011366,2]
[348759408,1736773880509,-292.19,0.00011366,2]
[348759409,1736773880519,-689.68,0.00011366,2]
[348759410,1736773880529,-321.2994457,0.00011366,2]
[348759411,1736773880540,-500.0,0.00011366,2]
[348759412,1736773880550,-708.66,0.00011366,2]
[348759413,1736773880560,-552.24,0.00011366,2]
[348759414,1736773880569,-500.0,0.00011366,2]
[348759415,1736773880579,-500.0,0.00011366,2]
[348759416,1736773880588,-555.45,0.00011366,2]
[348759417,1736773880598,-808.9,0.00011366,2]
[348759418,1736773880608,-337.62301205,0.00011366,2]
[348759419,1736773880617,-500.0,0.00011366,2]
[348759420,1736773880627,-500.0,0.00011366,2]
[348759421,1736773880637,-500.0,0.00011366,2]
[348759422,1736773880649,-208.6,0.00011366,2]
[348759423,1736773880659,-645.79,0.00011366,2]
[348759424,1736773880673,-500.0,0.00011366,2]
[348759425,1736773880684,-500.0,0.00011366,2]
[348759426,1736773880695,-476.44591528,0.00011366,2]
[348759427,1736773880732,-413.54352734,0.00010818,2]
[348759428,1736773881503,-500.0,9.996e-05,2]
[348759429,1736773881514,-500.0,9.996e-05,2]
[348759430,1736773881524,-163.17840826,0.0001027,2]
[348759431,1736773881563,-336.82159174,0.0001027,2]
[348759432,1736773881573,-504.48003013,0.0001027,2]
[348759433,1736773881583,-633.86,0.00010817,2]
[348759434,1736773881594,-839.09,0.00010817,2]
[348759435,1736773881604,-83.79820435,0.00010818,2]
[348759436,1736773881614,-500.0,0.00010819,2]
[348759437,1736773881623,-633.86,0.00011091,2]
[348759438,1736773881635,-839.09,0.00011091,2]
[348759439,1736773881645,-500.0,0.00011093,2]
[348759440,1736773881658,-500.0,0.00011093,2]
[348759441,1736773881668,-1547.88,0.00011365,2]
[348759442,1736773881678,-633.86,0.00011365,2]
[348759443,1736773881688,-839.09,0.00011365,2]
[348759444,1736773881698,-23.55408472,0.00011366,2]
[348759445,1736773881708,-500.0,0.00011366,2]
[348759446,1736773881718,-500.0,0.00011366,2]
[348759447,1736773881728,-500.0,0.00011366,2]
[348759448,1736773881738,-500.0,0.00011366,2]
[348759449,1736773881748,-500.0,0.00011366,2]
[348759450,1736773881758,-843.32,0.00011366,2]
[348759451,1736773881768,-500.0,0.00011366,2]
[348759452,1736773881778,-500.0,0.00011366,2]
[348759453,1736773881788,-500.0,0.00011366,2]
[348759454,1736773881797,-500.0,0.00011366,2]
[348759455,1736773881807,-785.37,0.00011366,2]
[348759456,1736773881818,-500.0,0.00011366,2]
[348759457,1736773881828,-500.0,0.00011366,2]
[348759458,1736773881838,-500.0,0.00011366,2]
[348759459,1736773881848,-742.44,0.00011366,2]
[348759460,1736773881857,-2944.45,0.00011366,2]
[348759461,1736773881868,-500.0,0.00011366,2]
[348759462,1736773881878,-500.0,0.00011366,2]
[348759463,1736773881888,-596.72,0.00011366,2]
[348759464,1736773881898,-500.0,0.00011366,2]
[348759465,1736773881907,-500.0,0.00011366,2]
[348759466,1736773881917,-2529.0,0.00011366,2]
[348759467,1736773881928,-500.0,0.00011366,2]
[348759468,1736773881938,-500.0,0.00011366,2]
[348759469,1736773881948,-500.0,0.00011366,2]
[348759470,1736773881958,-500.0,0.00011366,2]
[348759471,1736773881968,-500.0,0.00011366,2]
[348759472,1736773881977,-178.20519888,0.00011366,2]
[348759473,1736773881990,-321.79480112,0.00011366,2]
[348759474,1736773881999,-520.9,0.00011366,2]
[348759475,1736773882009,-500.0,0.00011366,2]
[348759476,1736773882019,-500.0,0.00011366,2]
[348759477,1736773882028,-500.0,0.00011366,2]
[348759478,1736773882037,-500.0,0.00011366,2]
[348759479,1736773882046,-500.0,0.00011366,2]
[348759480,1736773882056,-833.59,0.00011366,2]
[348759481,1736773882065,-500.0,0.00011366,2]
[348759482,1736773882075,-500.0,0.00011366,2]
[348759483,1736773882085,-500.0,0.00011366,2]
[348759484,1736773882094,-702.94,0.00011366,2]
[348759485,1736773882105,-611.22,0.00011366,2]
[348759486,1736773882116,-457.79032899,0.00011366,2]
[348759487,1736773882126,-500.0,0.00011366,2]
[348759488,1736773882136,-500.0,0.00011366,2]
[348759489,1736773882148,-500.0,0.00011366,2]
[348759490,1736773882158,-500.0,0.00011366,2]
[348759491,1736773882168,-500.0,0.00011366,2]
[348759492,1736773882177,-500.0,0.00011366,2]
[348759493,1736773882187,-500.0,0.00011366,2]
[348759494,1736773882197,-500.0,0.00011366,2]
[348759495,1736773882206,-500.0,0.00011366,2]
[348759496,1736773882216,-617.83,0.00011366,2]
[348759497,1736773882226,-545.27,0.00011366,2]
[348759498,1736773882236,-175.70192381,0.00011366,2]
[348759499,1736773882246,-500.0,0.00011366,2]
[348759500,1736773882255,-500.0,0.00011366,2]
[348759501,1736773882264,-500.0,0.00011366,2]
[348759502,1736773882274,-500.0,0.00011366,2]
[348759503,1736773882283,-500.0,0.00011366,2]
[348759504,1736773882292,-735.29,0.00011366,2]
[348759505,1736773882301,-500.0,0.00011366,2]
[348759506,1736773882310,-500.0,0.00011366,2]
[348759507,1736773882320,-500.0,0.00011366,2]
[348759508,1736773882330,-500.0,0.00011366,2]
[348759509,1736773882340,-500.0,0.00011366,2]
[348759510,1736773882350,-640.8,0.00011366,2]
[348759511,1736773882360,-500.0,0.00011366,2]
[348759512,1736773882370,-500.0,0.00011366,2]
[348759513,1736773882380,-500.0,0.00011366,2]
[348759514,1736773882392,-500.0,0.00011366,2]
[348759515,1736773882402,-500.0,0.00011366,2]
[348759516,1736773882412,-500.0,0.00011366,2]
[348759517,1736773882423,-567.68,0.00011366,2]
[348759518,1736773882433,-500.0,0.00011366,2]
[348759519,1736773882444,-500.0,0.00011366,2]
[348759520,1736773882455,-500.0,0.00011366,2]
[348759521,1736773882466,-500.0,0.00011366,2]
[348759522,1736773882476,-500.0,0.00011366,2]
[348759523,1736773882486,-500.0,0.00011366,2]
[348759524,1736773882497,-500.0,0.00011366,2]
[348759525,1736773882507,-500.0,0.00011366,2]
[348759526,1736773882516,-500.0,0.00011366,2]
[348759527,1736773882527,-500.0,0.00011366,2]
[348759528,1736773882538,-500.0,0.00011366,2]
[348759529,1736773882548,-500.0,0.00011366,2]
[348759530,1736773882558,-500.0,0.00011366,2]
[348759531,1736773882568,-500.0,0.00011366,2]
[348759532,1736773882579,-500.0,0.00011366,2]
[348759533,1736773882589,-500.0,0.00011366,2]
[348759534,1736773882599,-500.0,0.00011366,2]
[348759535,1736773882610,-500.0,0.00011366,2]
[348759536,1736773882620,-500.0,0.00011366,2]
[348759537,1736773882630,-500.0,0.00011366,2]
[348759538,1736773882640,-457.73865109,0.00011366,2]
[348759539,1736773882652,-500.0,0.00011366,2]
[348759540,1736773882662,-500.0,0.00011366,2]
[348759541,1736773882673,-500.0,0.00011366,2]
[348759542,1736773882683,-677.97,0.00011366,2]
[348759543,1736773882693,-500.0,0.00011366,2]
[348759544,1736773882703,-500.0,0.00011367,2]
[348759545,1736773882713,-539.8,0.00011367,2]
[348759546,1736773882722,-2848.7,0.00011367,2]
[348759547,1736773882732,-987.92,0.00011367,2]
[348759548,1736773882742,-500.0,0.00011367,2]
[348759549,1736773882752,-968.12,0.00011367,2]
[348759550,1736773882763,-1376.84,0.00011367,2]
[348759551,1736773882774,-500.0,0.00011367,2]
[348759552,1736773882784,-1394.92,0.00011367,2]
[348759553,1736773882794,-500.0,0.00011367,2]
[348759554,1736773882805,-970.37,0.00011367,2]
[348759555,1736773882815,-500.0,0.00011367,2]
[348759556,1736773882826,-500.0,0.00011367,2]
[348759557,1736773882836,-2825.73,0.00011367,2]
[348759558,1736773882846,-500.0,0.00011367,2]
[348759559,1736773882857,-500.0,0.00011367,2]
[348759560,1736773882867,-500.0,0.00011367,2]
[348759561,1736773882878,-1510.09,0.00011367,2]
[348759562,1736773882888,-500.0,0.00011367,2]
[348759563,1736773882899,-500.0,0.00011367,2]
[348759564,1736773882909,-500.0,0.00011367,2]
[348759565,1736773882918,-500.0,0.00011367,2]
[348759566,1736773882930,-1826.66,0.00011367,2]
[348759567,1736773882941,-500.0,0.00011367,2]
[348759568,1736773882951,-500.0,0.00011367,2]
[348759569,1736773882960,-2871.47,0.00011367,2]
[348759570,1736773882970,-500.0,0.00011367,2]
[348759571,1736773882981,-500.0,0.00011367,2]
[348759572,1736773882992,-531.96,0.00011367,2]
[348759573,1736773883003,-500.0,0.00011367,2]
[348759574,1736773883014,-500.0,0.00011367,2]
[348759575,1736773883024,-500.0,0.00011367,2]
[348759576,1736773883034,-500.0,0.00011367,2]
[348759577,1736773883044,-500.0,0.00011367,2]
[348759578,1736773883054,-693.24,0.00011367,2]
[348759579,1736773883065,-1782.35,0.00011367,2]
[348759580,1736773883076,-500.0,0.00011367,2]
[348759581,1736773883087,-500.0,0.00011367,2]
[348759582,1736773883097,-500.0,0.00011367,2]
[348759583,1736773883107,-479.05,0.00011367,2]
[348759584,1736773883119,-3169.42,0.00011367,2]
[348759585,1736773883130,-500.0,0.00011367,2]
[348759586,1736773883141,-236.28,0.00011367,2]
[348759587,1736773883153,-500.0,0.00011367,2]
[348759588,1736773883163,-500.0,0.00011367,2]
[348759589,1736773883174,-500.0,0.00011367,2]
[348759590,1736773883183,-1235.07,0.00011367,2]
[348759591,1736773883194,-500.0,0.00011367,2]
[348759592,1736773883205,-500.0,0.00011367,2]
[348759593,1736773883216,-1160.03,0.00011367,2]
[348759594,1736773883225,-1125.93,0.00011367,2]
[348759595,1736773883236,-1116.03,0.00011367,2]
[348759596,1736773883246,-500.0,0.00011367,2]
[348759597,1736773883257,-500.0,0.00011367,2]
[348759598,1736773883266,-2597.04,0.00011367,2]
[348759599,1736773883276,-1276.94,0.00011367,2]
[348759600,1736773883286,-1862.47,0.00011367,2]
[348759601,1736773883296,-1136.25,0.00011367,2]
[348759602,1736773883306,-1424.75,0.00011367,2]
[348759603,1736773883316,-500.0,0.00011367,2]
[348759604,1736773883326,-1275.12,0.00011367,2]
[348759605,1736773883336,-1790.95,0.00011367,2]
[348759606,1736773883346,-1239.65,0.00011367,2]
[348759607,1736773883356,-676.05,0.00011367,2]
[348759608,1736773883365,-647.88,0.00011367,2]
[348759609,1736773883377,-824.22,0.00011367,2]
[348759610,1736773883388,-751.33,0.00011367,2]
[348759611,1736773883400,-947.03,0.00011367,2]
[348759612,1736773883410,-500.0,0.00011367,2]
[348759613,1736773883422,-500.0,0.00011367,2]
[348759614,1736773883432,-1247.15,0.00011368,2]
[348759615,1736773883443,-1195.6,0.00011368,2]
[348759616,1736773883455,-1524.39,0.00011368,2]
[348759617,1736773883465,-1983.77,0.00011368,2]
[348759618,1736773883476,-757.28,0.00011368,2]
[348759619,1736773883486,-636.79,0.00011368,2]
[348759620,1736773883496,-519.85,0.00011368,2]
[348759621,1736773883507,-2164.57,0.00011368,2]
[348759622,1736773883517,-500.0,0.00011368,2]
[348759623,1736773883527,-549.45,0.00011368,2]
[348759624,1736773883537,-1372.06,0.00011368,2]
[348759625,1736773883548,-818.41,0.00011368,2]
[348759626,1736773883558,-500.0,0.00011369,2]
[348759627,1736773883569,-1000.0,0.00011369,2]
[348759628,1736773883580,-735.27,0.00011369,2]
[348759629,1736773883590,-500.0,0.00011369,2]
[348759630,1736773883601,-1122.61,0.00011369,2]
[348759631,1736773883611,-2068.98334803,0.00011421,2]
[348759632,1736773883621,-166.50549518,0.00011433,2]
[348759633,1736773883631,-157.33,0.00011459,2]
[348759634,1736773883640,-172.0,0.00011459,2]
[348759635,1736773883651,-2201.38275304,0.000115,2]
[348759636,1736773883661,-900.0,0.000115,4]
[348759637,1736773883671,-500.0,0.00011506,2]
[348759638,1736773883681,-1200.0,0.00011506,2]
[348759639,1736773883691,-1200.0,0.00011506,2]
[348759640,1736773883702,-1200.0,0.00011506,2]
[348759641,1736773883713,-900.0,0.00011506,2]
[348759642,1736773883722,-2751.0,0.00011507,2]
[348759643,1736773883732,-2000.0,0.00011507,2]
[348759644,1736773883743,-2000.0,0.00011507,2]
[348759645,1736773883752,-2000.0,0.00011507,2]
[348759646,1736773883762,-2000.0,0.00011507,2]
[348759647,1736773883772,-2000.0,0.00011507,2]
[348759648,1736773883782,-2000.0,0.00011507,2]
[348759649,1736773883791,-2000.0,0.00011507,2]
[348759650,1736773883801,-2000.0,0.00011507,2]
[348759651,1736773883814,-2000.0,0.00011507,2]
[348759652,1736773883826,-2000.0,0.00011507,2]
[348759653,1736773883838,-2000.0,0.00011507,2]
[348759654,1736773883848,-2000.0,0.00011507,2]
[348759655,1736773883858,-2000.0,0.00011507,2]
[348759656,1736773883868,-2000.0,0.00011507,2]
[348759657,1736773883878,-2000.0,0.00011507,2]
[348759658,1736773883888,-2000.0,0.00011507,2]
[348759659,1736773883897,-2000.0,0.00011507,2]
[348759660,1736773883908,-2000.0,0.00011507,2]
[348759661,1736773884061,-2000.0,0.00011507,2]
[348759662,1736773884072,-2000.0,0.00011507,2]
[348759663,1736773884081,-2000.0,0.00011507,2]
[348759664,1736773884091,-2000.0,0.00011507,2]
[348759665,1736773884101,-2000.0,0.00011507,2]
[348759666,1736773884110,-2000.0,0.00011507,2]
[348759667,1736773884120,-2000.0,0.00011507,2]
[348759668,1736773884129,-2000.0,0.00011507,2]
[348759669,1736773884138,-2000.0,0.00011507,2]
[348759670,1736773884149,-2000.0,0.00011507,2]
[348759671,1736773884158,-2000.0,0.00011507,2]
[348759672,1736773884167,-2000.0,0.00011507,2]
[348759673,1736773884177,-2000.0,0.00011507,2]
[348759674,1736773884187,-2000.0,0.00011507,2]
[348759675,1736773884196,-2000.0,0.00011507,2]
[348759676,1736773884205,-2000.0,0.00011507,2]
[348759677,1736773884214,-2000.0,0.00011507,2]
[348759678,1736773884224,-2000.0,0.00011507,2]
[348759679,1736773884234,-2000.0,0.00011507,2]
[348759680,1736773884244,-2000.0,0.00011507,2]
[348759681,1736773884254,-2000.0,0.00011507,2]
[348759682,1736773884264,-2000.0,0.00011507,2]
[348759683,1736773884274,-2000.0,0.00011507,2]
[348759684,1736773884284,-2000.0,0.00011507,2]
[348759685,1736773884294,-2000.0,0.00011507,2]
[348759686,1736773884305,-2000.0,0.00011507,2]
[348759687,1736773884314,-2000.0,0.00011507,2]
[348759688,1736773884325,-1644.0,0.00011507,2]
[348759689,1736773884335,-200.0,0.0001151,2]
[348759690,1736773884345,-1001.46233168,0.00011522,2]
[348759691,1736773884355,-2068.98334803,0.00011555,2]
[348759692,1736773884364,-173.67,0.00011584,2]
[348759693,1736773884375,-900.0,0.000116,4]
[348759694,1736773884388,-1495.77,0.00011639,2]
[348759695,1736773884399,-4901.24,0.00011639,2]
[348759696,1736773884409,-500.0,0.00011639,2]
[348759697,1736773884418,-516.84,0.00011639,2]
[348759698,1736773884429,-500.0,0.00011639,2]
[348759699,1736773884438,-1154.59,0.00011639,2]
[348759700,1736773884448,-721.36,0.00011639,2]
[348759701,1736773884459,-1250.94,0.00011639,2]
[348759702,1736773884469,-2172.52,0.00011639,2]
[348759703,1736773884480,-500.0,0.00011639,2]
[348759704,1736773884490,-3812.19,0.00011639,2]
[348759705,1736773884501,-1080.68,0.00011639,2]
[348759706,1736773884510,-2146.84,0.00011639,2]
[348759707,1736773884520,-2120.16,0.00011639,2]
[348759708,1736773884530,-557.28,0.00011639,2]
[348759709,1736773884540,-1818.87,0.00011639,2]
[348759710,1736773884550,-1556.94,0.00011639,2]
[348759711,1736773884559,-1241.83,0.00011639,2]
[348759712,1736773884569,-1316.25,0.00011639,2]